bitfinex-derivatives/quotes_BNBF0:USTF0_20250413
["timestamp","ask_amount","ask_price","bid_price","bid_amount"]
[1744519222231,0.30989827,593.81,593.5,1.247]
[1744519222432,0.60319665,593.81,593.5,1.247]
[1744519222631,0.30989827,593.8,593.5,1.247]
[1744519224334,0.30989827,593.79,593.5,1.247]
[1744519224534,0.30989827,593.81,593.5,1.247]
[1744519224737,0.30989827,593.8,593.5,0.716]
[1744519224938,0.30989827,593.81,593.5,0.716]
[1744519225235,0.33680239,593.82,593.49,0.493]
[1744519225437,0.29333794,593.79,593.49,0.493]
[1744519225629,0.30988637,593.78,593.49,0.493]
[1744519227339,0.30988637,593.81,593.49,0.493]
[1744519227533,0.30988637,593.8,593.49,0.493]
[1744519227735,0.30988637,593.81,593.49,0.493]
[1744519227938,0.30988637,593.8,593.49,0.493]
[1744519228239,0.30988637,593.79,593.49,0.493]
[1744519228440,0.29334041,593.79,593.49,0.493]
[1744519228635,0.30988637,593.78,593.49,0.493]
[1744519229541,0.29334041,593.79,593.49,0.493]
[1744519229840,0.30988583,593.78,593.49,0.493]
[1744519230439,0.30988583,593.81,593.49,0.493]
[1744519231339,0.29334412,593.8,593.49,0.493]
[1744519231544,0.30988583,593.79,593.49,0.493]
[1744519236548,0.29334412,593.8,593.49,0.493]
[1744519236743,0.30986299,593.79,593.49,0.493]
[1744519238350,0.30986361,593.78,593.49,0.493]
[1744519238543,0.30986361,593.77,593.49,0.493]
[1744519238849,0.30986361,593.76,593.49,0.493]
[1744519239049,0.30986361,593.75,593.49,0.493]
[1744519239351,0.30986361,593.74,593.49,0.493]
[1744519239646,0.30986361,593.73,593.49,0.493]
[1744519239845,0.30986361,593.81,593.49,0.493]
[1744519240450,0.29332187,593.8,593.49,0.493]
[1744519240655,0.30986361,593.79,593.49,0.493]
[1744519241453,0.29332187,593.8,593.49,0.493]
[1744519241647,0.3098639,593.79,593.49,0.493]
[1744519242350,0.3098639,593.81,593.49,0.493]
[1744519243455,0.29332187,593.8,593.49,0.493]
[1744519243654,0.3098639,593.79,593.49,0.493]
[1744519244655,0.29332187,593.8,593.49,0.493]
[1744519244854,0.30986026,593.79,593.49,0.493]
[1744519245453,0.30986026,593.81,593.49,0.493]
[1744519246358,0.33680239,593.82,593.49,0.493]
[1744519246559,0.29332187,593.8,593.49,0.493]
[1744519246759,0.30987054,593.79,593.49,0.493]
[1744519248561,0.30987054,593.81,593.49,0.493]
[1744519249457,0.29332558,593.8,593.49,0.493]
[1744519249855,0.30987054,593.79,593.49,0.493]
[1744519251357,0.30987054,593.81,593.49,0.493]
[1744519252160,0.30987054,593.81,593.42,0.673]
[1744519252464,0.29332558,593.8,593.42,0.673]
[1744519252665,0.30987054,593.79,593.42,0.673]
[1744519252965,0.30984199,593.78,593.42,0.673]
[1744519253164,0.30984199,593.79,593.42,0.673]
[1744519253460,0.30984199,593.78,593.42,0.673]
[1744519253665,0.30984199,593.79,593.42,0.673]
[1744519253866,0.30984199,593.78,593.42,0.673]
[1744519254166,0.30984199,593.77,593.42,0.673]
[1744519254366,0.30984199,593.81,593.42,0.673]
[1744519254666,0.30984199,593.81,593.42,1.194]
[1744519255366,0.2933058,593.8,593.42,1.194]
[1744519255567,0.30984199,593.79,593.42,1.194]
[1744519256071,0.2933058,593.8,593.42,1.194]
[1744519256267,0.30981608,593.79,593.42,1.194]
[1744519257366,0.30981608,593.81,593.42,1.194]
[1744519257571,0.33680239,593.82,593.42,1.194]
[1744519258362,0.29325143,593.81,593.42,1.194]
[1744519259264,0.29325143,593.81,593.42,1.96]
[1744519260368,0.33680239,593.82,593.42,1.96]
[1744519260566,1.28024234,594.45,593.42,1.96]
[1744519260869,0.33645677,594.43,593.42,1.96]
[1744519261168,0.30974066,594.42,593.42,1.96]
[1744519261369,0.33647375,594.4,593.42,1.96]
[1744519261669,0.30974066,594.39,593.42,1.96]
[1744519261864,0.33649073,594.37,593.42,1.96]
[1744519262264,0.30973618,594.36,593.42,1.96]
[1744519262568,0.64623824,594.35,593.42,1.96]
[1744519262768,0.6462439,594.34,593.42,1.96]
[1744519262965,0.64624956,594.33,593.42,1.96]
[1744519263170,0.30973618,594.32,593.42,1.96]
[1744519263468,0.3365247,594.31,593.42,1.96]
[1744519263669,0.30973618,594.3,593.42,1.96]
[1744519263871,0.33653603,594.29,593.42,1.96]
[1744519264068,0.30973618,594.28,593.42,1.96]
[1744519264270,0.33654736,594.27,593.42,1.96]
[1744519264473,0.30973618,594.26,593.42,1.96]
[1744519264771,0.33655868,594.25,593.42,1.96]
[1744519265065,0.30973618,594.24,593.42,1.96]
[1744519265270,0.33657001,594.23,593.42,1.96]
[1744519265470,0.30973618,594.22,593.42,1.96]
[1744519266074,0.33658134,594.21,593.42,1.96]
[1744519266272,0.30973618,594.2,593.42,1.96]
[1744519266567,0.33659267,594.19,593.42,1.96]
[1744519266767,0.30973618,594.18,593.42,1.96]
[1744519266973,0.336604,594.17,593.42,1.96]
[1744519267173,0.30973618,594.16,593.42,1.96]
[1744519267372,0.33661533,594.15,593.42,1.96]
[1744519267574,0.30973618,594.14,593.42,1.96]
[1744519267774,0.33662666,594.13,593.42,1.96]
[1744519267973,0.30973618,594.12,593.42,1.96]
[1744519270470,0.29323289,594.11,593.42,1.96]
[1744519270675,0.30973618,594.1,593.42,1.96]
[1744519271069,0.30973618,594.1,593.42,2.562]
[1744519271475,0.30973618,594.09,593.42,2.562]
[1744519271774,0.29323289,594.11,593.42,2.562]
[1744519271973,0.30978566,594.1,593.42,2.562]
[1744519272171,0.30978566,594.09,593.42,2.562]
[1744519272370,0.30978566,594.08,593.42,2.562]
[1744519272572,0.30978566,594.07,593.42,2.562]
[1744519272775,0.30978566,594.08,593.42,2.562]
[1744519272969,0.30978566,594.07,593.42,2.562]
[1744519273175,0.30978566,594.06,593.42,2.562]
[1744519273474,0.30977838,594.05,593.42,2.562]
[1744519273674,0.30977838,594.08,593.42,2.562]
[1744519273969,0.30977838,594.07,593.42,2.562]
[1744519274175,0.30977838,594.08,593.42,2.562]
[1744519274474,0.30977838,594.07,593.42,2.562]
[1744519274670,0.30977838,594.08,593.42,2.562]
[1744519274876,0.30977838,594.07,593.42,2.562]
[1744519275071,0.30977838,594.06,593.42,2.562]
[1744519275378,0.30977838,594.05,593.42,2.562]
[1744519275581,0.30977838,594.12,593.42,2.562]
[1744519275770,0.64641637,594.11,593.42,2.562]
[1744519275971,0.30977838,594.1,593.42,3.213]
[1744519276277,0.64642204,594.1,593.42,3.213]
[1744519276476,0.60302857,594.09,593.42,3.213]
[1744519276679,0.30977287,594.08,593.42,3.213]
[1744519276877,0.30977287,594.07,593.42,3.213]
[1744519277176,0.30977287,594.06,593.42,3.213]
[1744519277373,0.33666066,594.07,593.42,3.213]
[1744519277579,0.30977287,594.06,593.42,3.213]
[1744519278478,0.29325513,594.05,593.42,3.213]
[1744519278677,0.30977287,594.04,593.42,3.213]
[1744519281482,0.29325513,594.05,593.42,3.213]
[1744519281781,0.30976355,594.04,593.42,3.213]
[1744519282984,0.30976355,594.04,593.42,3.844]
[1744519283185,0.29325513,594.05,593.42,3.844]
[1744519283186,0.30976313,594.03,593.42,3.844]
[1744519283384,0.29325513,594.05,593.42,3.844]
[1744519283385,0.30976313,594.04,593.42,3.844]
[1744519284485,0.30976313,594.03,593.42,3.844]
[1744519284686,1.28024234,594.19,593.42,3.844]
[1744519284885,0.30976636,594.18,593.42,3.844]
[1744519285086,0.30976636,594.17,593.42,3.844]
[1744519285286,0.30976636,594.16,593.42,3.844]
[1744519285582,0.30976636,594.15,593.42,3.844]
[1744519285787,0.30976636,594.14,593.42,3.844]
[1744519285985,0.30976636,594.13,593.42,3.844]
[1744519286289,0.30976636,594.12,593.42,3.844]
[1744519286491,0.30976636,594.11,593.42,3.844]
[1744519286689,0.30976636,594.1,593.42,3.844]
[1744519286887,0.30976636,594.09,593.42,3.844]
[1744519287087,0.30976636,594.08,593.42,3.844]
[1744519287491,0.30976636,594.07,593.42,3.844]
[1744519287687,0.30976636,594.06,593.42,3.844]
[1744519287892,1.28024234,594.13,593.42,3.844]
[1744519288094,0.30976636,594.05,593.42,3.844]
[1744519288289,0.30976636,594.04,593.42,3.844]
[1744519288498,0.29323042,594.04,593.42,3.844]
[1744519288695,0.30976636,594.03,593.42,3.844]
[1744519290492,0.30976636,594.12,593.42,3.844]
[1744519290698,0.30976636,594.11,593.42,3.844]
[1744519290898,0.30976636,594.1,593.42,3.844]
[1744519291094,0.30976636,594.09,593.42,3.844]
[1744519291298,0.30976636,594.08,593.42,3.844]
[1744519291501,1.28024234,594.02,593.42,3.844]
[1744519291802,0.30976636,594.01,593.42,3.844]
[1744519293903,1.28024234,594.0,593.42,3.844]
[1744519294203,0.30976636,593.99,593.42,3.844]
[1744519294403,0.30986035,593.98,593.42,3.844]
[1744519295903,0.29329838,593.99,593.42,3.844]
[1744519296097,0.30986054,593.98,593.42,3.844]
[1744519296496,0.30986054,593.99,593.42,3.844]
[1744519296701,0.30986054,593.98,593.42,3.844]
[1744519296902,0.30986054,593.97,593.42,3.844]
[1744519297098,0.30986054,593.99,593.42,3.844]
[1744519297302,0.30986054,593.98,593.42,3.844]
[1744519297497,0.29329838,593.96,593.42,3.844]
[1744519297699,0.30986054,593.95,593.42,3.844]
[1744519299001,0.29329838,593.96,593.42,3.844]
[1744519299216,0.30986182,593.95,593.42,3.844]
[1744519299397,0.30986182,594.65,593.42,3.844]
[1744519299697,0.30986182,594.64,593.42,3.844]
[1744519299897,0.30986182,594.63,593.42,3.844]
[1744519300099,0.30986182,594.62,593.42,3.844]
[1744519300297,0.30986182,594.61,593.42,3.844]
[1744519300500,0.30986182,594.6,593.42,3.844]
[1744519300898,0.30986182,594.59,593.42,3.844]
[1744519301103,0.30986182,594.58,593.42,3.844]
[1744519301305,0.30986182,594.57,593.42,3.844]
[1744519301505,0.30986182,594.56,593.42,3.844]
[1744519301706,0.30986182,594.55,593.42,3.844]
[1744519301900,0.30986182,594.54,593.42,3.844]
[1744519302105,1.28024234,594.51,593.42,3.844]
[1744519302304,0.30986182,594.5,593.42,3.844]
[1744519302500,0.30986182,594.49,593.42,3.844]
[1744519302704,0.30986182,594.48,593.42,3.844]
[1744519302901,0.30986182,594.47,593.42,3.844]
[1744519303103,0.30986182,594.46,593.42,3.844]
[1744519303304,0.30986182,594.45,593.42,3.844]
[1744519303504,0.30986182,594.44,593.42,3.844]
[1744519304008,0.3097943,594.43,593.42,3.844]
[1744519304201,0.3097943,594.42,593.42,3.844]
[1744519304405,1.28024234,594.18,593.42,3.844]
[1744519304605,0.3097943,594.17,593.42,3.844]
[1744519306407,0.60302596,594.16,593.42,3.844]
[1744519306608,0.3097943,594.15,593.42,3.844]
[1744519308407,0.3097943,594.26,593.42,3.844]
[1744519308604,0.33656435,594.24,593.42,3.844]
[1744519308805,0.3097943,594.23,593.42,3.844]
[1744519309002,0.33658134,594.21,593.42,3.844]
[1744519309207,0.3097943,594.2,593.42,3.844]
[1744519309507,0.33659267,594.19,593.42,3.844]
[1744519309708,0.3097943,594.18,593.42,3.844]
[1744519310308,0.336604,594.17,593.42,3.844]
[1744519310509,0.3097943,594.16,593.42,3.844]
[1744519310708,0.33661533,594.15,593.42,3.844]
[1744519310910,0.3097943,594.14,593.42,3.844]
[1744519311111,0.33662666,594.13,593.42,3.844]
[1744519311303,0.3097943,594.12,593.42,3.844]
[1744519311509,0.33663799,594.11,593.42,3.844]
[1744519311707,0.3097943,594.1,593.42,3.844]
[1744519311910,0.33664932,594.09,593.42,3.844]
[1744519312110,0.64641765,594.09,593.42,3.844]
[1744519312310,0.30976833,594.08,593.42,3.844]
[1744519312611,0.33666066,594.07,593.42,3.844]
[1744519312807,0.30976833,594.06,593.42,3.844]
[1744519313008,0.33667199,594.05,593.42,3.844]
[1744519313309,0.30976833,594.04,593.42,3.844]
[1744519313511,0.33668333,594.03,593.42,3.844]
[1744519313810,0.30976833,594.02,593.42,3.844]
[1744519315211,0.30976859,594.01,593.42,3.844]
[1744519315509,0.30976859,594.0,593.42,3.844]
[1744519316311,0.64646892,594.0,593.42,3.844]
[1744519316511,0.30976859,593.99,593.42,3.844]
[1744519318213,0.33670033,594.0,593.42,3.844]
[1744519318409,0.30977517,593.99,593.42,3.844]
[1744519318713,0.29324895,593.98,593.42,3.844]
[1744519319010,0.30977517,593.97,593.42,3.844]
[1744519319814,0.29324895,593.98,593.42,3.844]
[1744519320014,0.30977492,593.97,593.42,3.844]
[1744519320414,0.30977492,593.99,593.42,3.844]
[1744519321416,0.29324895,593.98,593.42,3.844]
[1744519321616,0.30977492,593.97,593.42,3.844]
[1744519322519,0.29324895,593.98,593.42,3.844]
[1744519322721,0.30978374,593.97,593.42,3.844]
[1744519323521,0.30978374,593.96,593.42,3.844]
[1744519323719,0.30978374,593.99,593.42,3.844]
[1744519324518,0.62996062,593.98,593.42,3.844]
[1744519324717,0.64650108,593.97,593.42,3.844]
[1744519325019,0.64650675,593.96,593.42,3.844]
[1744519325221,0.64651242,593.95,593.42,3.844]
[1744519325420,0.64651809,593.94,593.42,3.844]
[1744519325621,0.64652375,593.93,593.42,3.844]
[1744519325815,0.64652942,593.92,593.42,3.844]
[1744519326019,0.64653509,593.91,593.42,3.844]
[1744519326218,0.30978374,593.9,593.42,3.844]
[1744519326822,0.3367627,593.89,593.42,3.844]
[1744519327015,0.30978374,593.88,593.42,3.844]
[1744519327219,0.33677404,593.87,593.42,3.844]
[1744519327422,0.30978374,593.86,593.42,3.844]
[1744519327622,0.33678538,593.85,593.42,3.844]
[1744519327822,0.30978374,593.84,593.42,3.844]
[1744519328022,0.33679672,593.83,593.42,3.844]
[1744519328224,0.30978374,593.82,593.42,3.844]
[1744519328423,0.33680806,593.81,593.42,3.844]
[1744519328624,0.30978374,593.8,593.42,3.844]
[1744519328825,0.33681941,593.79,593.42,2.427]
[1744519329026,0.33681941,593.79,592.58,0.29331198]
[1744519329324,0.30987118,593.78,592.59,0.53272701]
[1744519329522,0.30987118,593.78,592.6,0.53272701]
[1744519329725,0.30987118,593.78,592.61,0.53272701]
[1744519329926,0.30987118,593.78,592.62,0.53272701]
[1744519330123,0.33683075,593.77,592.63,0.53272701]
[1744519330321,0.30987118,593.76,592.64,0.53272701]
[1744519330522,0.3368421,593.75,592.65,0.53272701]
[1744519330727,0.30987118,593.74,592.66,0.53272701]
[1744519330921,0.30987118,593.74,592.67,0.53272701]
[1744519331122,0.30987118,593.74,592.68,0.53272701]
[1744519331325,0.30987118,593.74,592.69,0.53272701]
[1744519331524,0.30987118,593.74,592.7,0.53272701]
[1744519331821,0.30987118,593.74,592.71,0.53272701]
[1744519332128,0.30987118,593.74,592.72,1.01072701]
[1744519332325,0.33685345,593.73,592.73,0.53272701]
[1744519332522,0.30987118,593.72,592.74,0.53272701]
[1744519332727,0.30987118,593.72,592.75,0.53272701]
[1744519332927,0.33686479,593.71,592.76,0.53272701]
[1744519333127,0.30987118,593.7,592.77,0.53272701]
[1744519333428,0.33687614,593.69,592.78,0.53272701]
[1744519333629,0.30987118,593.68,592.79,0.53272701]
[1744519333829,0.33688182,593.68,592.8,0.53231667]
[1744519334029,0.3099097,593.67,592.81,0.53231667]
[1744519334229,0.3099097,593.67,592.75,1.045]
[1744519334230,0.3099097,593.67,592.82,0.53231667]
[1744519334430,0.3099097,593.67,592.83,0.53231667]
[1744519334630,0.3099097,593.67,592.84,0.53231667]
[1744519334829,0.3099097,593.67,592.75,1.045]
[1744519335030,0.3099097,593.67,592.76,0.53222085]
[1744519335231,0.3099097,593.67,592.77,0.53222085]
[1744519335431,0.3099097,593.67,592.78,0.53222085]
[1744519335630,0.3099097,593.67,592.79,0.53222085]
[1744519335832,0.3099097,593.67,592.8,0.53222085]
[1744519336031,0.3099097,593.67,592.81,0.53222085]
[1744519336330,0.3099097,593.67,592.82,0.53222085]
[1744519336631,0.3099097,593.67,592.83,0.53222085]
[1744519336827,0.3099097,593.67,592.84,0.53222085]
[1744519337035,0.30987545,593.66,592.85,0.53222085]
[1744519337333,0.30987545,593.65,592.86,0.53222085]
[1744519337532,0.30987545,593.67,592.87,0.53222085]
[1744519337734,0.30987545,593.67,592.88,0.53222085]
[1744519337932,0.30987545,593.67,592.89,0.53222085]
[1744519338135,0.30987545,593.67,592.75,1.045]
[1744519338334,0.30987545,593.67,592.76,0.53202629]
[1744519338530,0.30987545,593.67,592.77,0.53202629]
[1744519338729,0.30987545,593.67,592.78,0.53202629]
[1744519338934,0.30987545,593.67,592.79,0.53202629]
[1744519339133,0.30987545,593.67,592.8,0.53202629]
[1744519339335,0.30987545,593.67,592.81,0.53202629]
[1744519339538,0.29342575,593.66,592.82,0.53202629]
[1744519339736,0.30987545,593.65,592.83,0.53202629]
[1744519339936,0.30987545,593.65,592.84,0.53202629]
[1744519340132,0.30987545,593.65,592.85,0.53202629]
[1744519340433,0.30987545,593.65,592.75,1.045]
[1744519340733,0.29342575,593.66,592.76,0.53203235]
[1744519340937,0.29342575,593.66,592.77,0.53203235]
[1744519341138,0.29342575,593.66,592.78,0.53203235]
[1744519341341,0.33688182,593.68,592.79,0.53203235]
[1744519341534,0.29342575,593.65,592.8,0.53203235]
[1744519341737,0.29342575,593.65,592.81,0.53203235]
[1744519341939,0.29342575,593.65,592.82,0.53203235]
[1744519342139,0.29342575,593.65,592.83,0.53203235]
[1744519342333,0.29342575,593.65,592.84,0.53203235]
[1744519342534,0.29342575,593.65,592.85,0.53199271]
[1744519342737,0.29342575,593.65,592.86,0.53199271]
[1744519342933,0.29342575,593.65,592.87,0.53199271]
[1744519343138,0.29342575,593.65,592.88,0.53199271]
[1744519343339,0.29342575,593.65,592.89,0.53199271]
[1744519343534,0.29342575,593.65,592.9,0.53199271]
[1744519343734,0.29342575,593.65,592.91,0.53199271]
[1744519343934,0.29342575,593.65,592.92,0.53200242]
[1744519344234,0.33688182,593.68,592.75,1.045]
[1744519344440,0.33688182,593.68,592.76,0.53201591]
[1744519344640,0.33688182,593.68,592.77,0.53201591]
[1744519344840,0.33688182,593.68,592.78,0.53201591]
[1744519345043,0.33688182,593.68,592.79,0.53201591]
[1744519345238,0.30981948,593.67,592.8,0.53201591]
[1744519345437,0.30981948,593.67,592.81,0.53201591]
[1744519345642,0.33688182,593.68,592.82,0.53201591]
[1744519345943,0.30982214,593.67,592.83,0.53201591]
[1744519346136,0.30982214,593.67,592.84,0.53201591]
[1744519346335,0.30982214,593.67,592.85,0.53201591]
[1744519346535,0.30982214,593.67,592.86,0.53201591]
[1744519346735,0.30982828,593.66,592.87,0.53201591]
[1744519347041,0.30982828,593.65,592.88,0.53201591]
[1744519347242,0.30980694,593.67,592.88,0.53201591]
[1744519348044,0.33688182,593.68,592.89,0.53201591]
[1744519348237,0.33688182,593.68,592.9,0.53201591]
[1744519348441,0.33688182,593.68,592.91,0.53201591]
[1744519348742,0.33688182,593.68,592.92,0.53201591]
[1744519348944,0.33688182,593.68,592.93,0.53201591]
[1744519349243,0.33688182,593.68,592.94,0.53201591]
[1744519349439,0.33688182,593.68,592.95,0.53201591]
[1744519349744,0.33688182,593.68,592.96,0.53201591]
[1744519349941,0.33688182,593.68,592.97,0.53201591]
[1744519350141,0.33688182,593.68,592.98,0.53201591]
[1744519350340,0.33688182,593.68,592.99,0.53201591]
[1744519350541,0.33688182,593.68,593.0,0.53201591]
[1744519350837,0.33688182,593.68,593.01,0.53205494]
[1744519351038,0.33688182,593.68,593.02,0.53205494]
[1744519351238,0.33688182,593.68,593.03,0.53205494]
[1744519351541,0.33688182,593.68,593.04,0.53205494]
[1744519351744,0.33688182,593.68,593.05,0.53205494]
[1744519352039,0.33688182,593.68,592.87,0.607]
[1744519352244,0.30978996,593.67,592.88,0.53204261]
[1744519352441,0.30978996,593.67,592.89,0.53204261]
[1744519352641,0.30978996,593.67,592.9,0.53204261]
[1744519352840,0.30978996,593.67,592.91,0.53204261]
[1744519353039,0.30978996,593.67,592.92,0.53204261]
[1744519353239,0.30978996,593.67,592.93,0.53204261]
[1744519353437,0.30978996,593.67,592.94,0.53204261]
[1744519353639,0.30978996,593.67,592.95,0.53204261]
[1744519353839,0.30978996,593.67,592.96,0.53204261]
[1744519354146,0.30978996,593.67,592.97,0.53204261]
[1744519354346,0.30978996,593.67,592.98,0.53204261]
[1744519354544,0.30978996,593.67,592.87,0.607]
[1744519354545,0.30978996,593.67,592.99,0.53204261]
[1744519354746,0.30978996,593.67,593.0,0.53204261]
[1744519355050,0.30978996,593.67,593.01,0.53204261]
[1744519355246,0.30978996,593.67,593.02,0.53204261]
[1744519355451,0.30978996,593.67,593.03,0.53204261]
[1744519355651,0.30978996,593.67,593.04,0.53204261]
[1744519355846,0.30978996,593.67,593.05,0.53204261]
[1744519356152,0.30978996,593.67,593.06,0.53201048]
[1744519356352,0.30978996,593.67,593.07,0.53201048]
[1744519356554,0.30978996,593.67,593.08,0.53200866]
[1744519356753,0.30978996,593.67,592.87,0.607]
[1744519356948,0.30978996,593.67,592.88,0.5320054]
[1744519357150,0.30978996,593.67,592.89,0.5320054]
[1744519357351,0.30978996,593.67,592.9,0.5320054]
[1744519357552,0.30978996,593.67,592.91,0.5320054]
[1744519357850,0.30978996,593.67,592.92,0.5320054]
[1744519358052,0.30978996,593.67,592.93,0.5320054]
[1744519358249,0.30978996,593.67,592.94,0.5320054]
[1744519358454,0.30978996,593.67,592.95,0.5320054]
[1744519358650,0.30978996,593.67,592.96,0.5320054]
[1744519358854,0.30978996,593.67,592.97,0.5320054]
[1744519359052,0.30978996,593.67,592.98,0.5320054]
[1744519359252,0.30978996,593.67,592.99,0.5320054]
[1744519359452,0.30978996,593.67,593.0,0.5320054]
[1744519359650,0.30978996,593.67,593.01,0.5320054]
[1744519359849,0.30978996,593.67,593.02,0.5320054]
[1744519360049,0.30978996,593.67,593.03,0.5320054]
[1744519360254,0.30978996,593.67,593.04,0.5320054]
[1744519360554,0.30978996,593.67,593.05,0.5320054]
[1744519360754,0.30978996,593.67,593.06,0.5320054]
[1744519360953,0.30978996,593.67,593.07,0.53202977]
[1744519361149,0.30978996,593.67,593.08,0.53203441]
[1744519361350,0.33688182,593.68,593.09,0.53203441]
[1744519361551,0.33688182,593.68,593.1,0.53203441]
[1744519361756,0.33688182,593.68,593.11,0.53203441]
[1744519361955,0.33688182,593.68,593.12,0.53203441]
[1744519362157,0.33688182,593.68,593.1,0.475]
[1744519362456,0.33688182,593.68,593.11,0.5319448]
[1744519362656,0.33688182,593.68,593.12,0.5319448]
[1744519362956,0.33688182,593.68,593.13,0.5319448]
[1744519363153,0.33688182,593.68,593.1,0.475]
[1744519363355,0.33688182,593.68,593.14,0.537]
[1744519366454,0.29331693,593.81,593.14,0.537]
[1744519366659,0.3097591,593.8,593.14,0.537]
[1744519368363,0.3097591,593.8,593.15,0.484]
[1744519369262,0.29331693,593.81,593.15,0.484]
[1744519369463,0.30975159,593.8,593.15,0.484]
[1744519370362,0.30975159,593.8,593.15,1.078]
[1744519370764,0.29331693,593.81,593.15,1.078]
[1744519371063,0.30975207,593.8,593.15,1.078]
[1744519371465,1.28024234,594.3,593.15,1.078]
[1744519371665,0.33654169,594.28,593.15,1.078]
[1744519371862,0.30975207,594.27,593.15,1.078]
[1744519372063,0.33655868,594.25,593.15,1.078]
[1744519372267,0.30975207,594.24,593.15,1.078]
[1744519372568,0.33657567,594.22,593.15,1.078]
[1744519372767,0.30974358,594.21,593.15,1.078]
[1744519372967,0.33659267,594.19,593.15,1.078]
[1744519373267,0.30974358,594.18,593.15,1.078]
[1744519373467,0.336604,594.17,593.15,1.078]
[1744519373667,0.30974358,594.16,593.15,1.078]
[1744519373868,0.33661533,594.15,593.15,1.078]
[1744519374064,0.30974229,594.14,593.15,1.078]
[1744519374672,0.29326378,594.13,593.15,1.078]
[1744519374869,0.30974229,594.12,593.15,1.078]
[1744519375068,0.33663799,594.11,593.15,1.078]
[1744519375368,0.30974229,594.1,593.15,1.078]
[1744519375569,0.33663799,594.11,593.15,1.078]
[1744519375770,0.30974542,594.1,593.15,1.078]
[1744519376570,0.33664932,594.09,593.15,1.078]
[1744519376770,0.30974542,594.08,593.15,1.078]
[1744519376970,0.33666066,594.07,593.15,1.078]
[1744519377164,0.30974542,594.06,593.15,1.743]
[1744519377366,0.33667199,594.05,593.15,1.743]
[1744519377569,0.30974542,594.04,593.15,1.743]
[1744519377769,0.33668333,594.03,593.15,1.743]
[1744519377970,0.30974542,594.02,593.15,1.743]
[1744519378167,0.64643442,594.02,593.15,1.743]
[1744519378364,0.30974542,594.01,593.15,1.743]
[1744519378665,0.6030092,594.01,593.15,1.743]
[1744519378870,0.30974542,594.0,593.16,0.5315301]
[1744519379070,0.30974542,594.0,593.15,1.743]
[1744519379871,0.30974542,594.0,593.15,2.315]
[1744519380367,0.336689,594.02,593.15,2.315]
[1744519380571,0.30974148,594.01,593.15,2.315]
[1744519381471,0.29326502,594.0,593.15,2.315]
[1744519381673,0.30974148,593.99,593.15,2.315]
[1744519386370,0.30974148,594.01,593.15,2.315]
[1744519387573,0.29326502,594.0,593.15,2.315]
[1744519387770,0.30974148,593.99,593.15,2.315]
[1744519387975,0.30974499,593.98,593.15,2.315]
[1744519388171,0.30974499,593.99,593.15,2.315]
[1744519388369,0.30974499,593.98,593.15,2.315]
[1744519388574,0.30974499,593.99,593.15,2.315]
[1744519389474,0.30974499,594.01,593.15,2.315]
[1744519390475,0.29326502,594.0,593.15,2.315]
[1744519390675,0.30974499,593.99,593.15,2.315]
[1744519391075,0.29326502,594.0,593.15,2.315]
[1744519391271,0.30974465,593.99,593.15,2.315]
[1744519392476,0.30974465,593.98,593.15,2.315]
[1744519392675,0.30974465,593.97,593.15,2.315]
[1744519392873,0.30974465,593.96,593.15,2.315]
[1744519393071,0.30974465,594.01,593.16,0.53163938]
[1744519393376,0.30974465,594.0,593.17,0.53174612]
[1744519393577,0.29326502,594.0,593.15,2.315]
[1744519393872,0.30974465,593.99,593.17,0.441]
[1744519395877,0.29326502,594.0,593.17,0.441]
[1744519396079,0.30974405,593.99,593.17,0.441]
[1744519396278,0.30974405,593.99,593.17,0.98]
[1744519398477,0.30974405,593.99,593.18,0.53228901]
[1744519398678,0.30974405,593.98,593.17,0.98]
[1744519398979,0.30974405,593.97,593.18,0.53228901]
[1744519399274,0.30974405,593.96,593.17,0.98]
[1744519399475,0.30974405,594.01,593.18,0.5323978]
[1744519399680,0.29326255,593.96,593.17,0.98]
[1744519399880,0.30974405,593.95,593.18,0.5323978]